lending/lending_fUSD_20240411
["ID","MTS","AMOUNT","RATE_DAILY","PERIOD"]
[322173965,1712863864425,-500.0,0.00027945,2]
[322173966,1712863864434,-687.99,0.00027945,2]
[322173967,1712863864443,-500.0,0.00027945,2]
[322173968,1712863864452,-500.0,0.00027945,2]
[322173969,1712863864461,-688.71,0.00027945,2]
[322173970,1712863864471,-500.0,0.00027945,2]
[322173971,1712863864480,-812.38,0.00027945,2]
[322173972,1712863864489,-500.0,0.00027945,2]
[322173973,1712863864498,-500.0,0.00027945,2]
[322173974,1712863864507,-911.26,0.00027945,2]
[322173975,1712863864516,-1387.07,0.00027945,2]
[322173976,1712863864526,-1238.46,0.00027945,2]
[322173977,1712863864535,-701.45,0.00027945,2]
[322173978,1712863864544,-500.0,0.00027945,2]
[322173979,1712863864554,-500.0,0.00027945,2]
[322173980,1712863864564,-1637.96,0.00027945,2]
[322173981,1712863864574,-500.0,0.00027945,2]
[322173982,1712863864583,-500.0,0.00027945,2]
[322173983,1712863864594,-500.0,0.00027945,2]
[322173984,1712863864606,-392.91536101,0.00027945,2]
[322173985,1712863864615,-727.26,0.00027945,2]
[322173986,1712863864625,-500.0,0.00027945,2]
[322173987,1712863864634,-500.0,0.00027945,2]
[322173988,1712863864645,-951.93,0.00027945,2]
[322173989,1712863864654,-912.94,0.00027945,2]
[322173990,1712863864663,-1360.26,0.00027945,2]
[322173991,1712863864674,-1633.79,0.00027945,2]
[322173992,1712863864683,-571.0,0.00027945,2]
[322173993,1712863864692,-500.0,0.00027945,2]
[322173994,1712863864701,-1497.81,0.00027945,2]
[322173995,1712863864710,-1592.01,0.00027945,2]
[322173996,1712863864719,-500.0,0.00027945,2]
[322173997,1712863864728,-500.0,0.00027945,2]
[322173998,1712863864737,-1649.12,0.00027945,2]
[322173999,1712863864747,-500.0,0.00027945,2]
[322174000,1712863864756,-980.99,0.00027945,2]
[322174001,1712863864765,-568.88241465,0.00027945,2]
[322174002,1712863864775,-500.0,0.00027945,2]
[322174003,1712863864784,-969.84,0.00027945,2]
[322174004,1712863864794,-500.0,0.00027945,2]
[322174005,1712863864804,-500.0,0.00027945,2]
[322174006,1712863864816,-500.0,0.00027945,2]
[322174007,1712863864825,-500.0,0.00027945,2]
[322174008,1712863864835,-1243.08,0.00027945,2]
[322174009,1712863864843,-500.0,0.00027945,2]
[322174010,1712863864852,-1761.18,0.00027945,2]
[322174011,1712863864862,-374.05,0.00027945,2]
[322174012,1712863864871,-500.0,0.00027945,2]
[322174013,1712863864881,-599.77727837,0.00027945,2]
[322174014,1712863864890,-1689.77,0.00027945,2]
[322174015,1712863865086,-500.0,0.00027945,2]
[322174016,1712863865098,-500.0,0.00027945,2]
[322174017,1712863865108,-500.0,0.00027945,2]
[322174018,1712863865118,-500.0,0.00027945,2]
[322174019,1712863865128,-1026.47,0.00027945,2]
[322174020,1712863865138,-500.0,0.00027945,2]
[322174021,1712863865148,-500.0,0.00027945,2]
[322174022,1712863865158,-539.10930331,0.00027945,2]
[322174023,1712863865168,-910.91,0.00027945,2]
[322174024,1712863865177,-500.0,0.00027945,2]
[322174025,1712863865187,-500.0,0.00027945,2]
[322174026,1712863865197,-1567.65,0.00027945,2]
[322174027,1712863865206,-500.0,0.00027945,2]
[322174028,1712863865216,-500.0,0.00027945,2]
[322174029,1712863865226,-786.72,0.00027945,2]
[322174030,1712863865235,-1996.86,0.00027945,2]
[322174031,1712863865245,-1085.94,0.00027945,2]
[322174032,1712863865255,-500.0,0.00027945,2]
[322174033,1712863865265,-500.0,0.00027945,2]
[322174034,1712863865275,-500.0,0.00027945,2]
[322174035,1712863865285,-816.08,0.00027945,2]
[322174036,1712863865295,-1561.86,0.00027945,2]
[322174037,1712863865304,-1269.43,0.00027945,2]
[322174038,1712863865315,-1877.69,0.00027945,2]
[322174039,1712863865324,-500.0,0.00027945,2]
[322174040,1712863865333,-1972.42,0.00027945,2]
[322174041,1712863865342,-500.0,0.00027945,2]
[322174042,1712863865352,-500.0,0.00027945,2]
[322174043,1712863865362,-536.82727536,0.00027945,2]
[322174044,1712863865371,-500.0,0.00027945,2]
[322174045,1712863865381,-966.14,0.00027945,2]
[322174046,1712863865390,-2113.97,0.00027945,2]
[322174047,1712863865399,-500.0,0.00027945,2]
[322174048,1712863865409,-500.0,0.00027945,2]
[322174049,1712863865418,-500.0,0.00027945,2]
[322174050,1712863865428,-500.0,0.00027945,2]
[322174051,1712863865437,-761.76,0.00027945,2]
[322174052,1712863865447,-500.0,0.00027945,2]
[322174053,1712863865457,-500.0,0.00027945,2]
[322174054,1712863865466,-1089.8,0.00027945,2]
[322174055,1712863865476,-500.0,0.00027945,2]
[322174056,1712863865485,-500.0,0.00027945,2]
[322174057,1712863865495,-500.0,0.00027945,2]
[322174058,1712863865505,-2037.49,0.00027945,2]
[322174059,1712863865514,-1173.13,0.00027945,2]
[322174060,1712863865523,-500.0,0.00027945,2]
[322174061,1712863865533,-500.0,0.00027945,2]
[322174062,1712863865543,-500.0,0.00027945,2]
[322174063,1712863865552,-500.0,0.00027945,2]
[322174064,1712863865562,-793.23,0.00027945,2]
[322174065,1712863865572,-500.0,0.00027945,2]
[322174066,1712863865582,-2726.32,0.00027945,2]
[322174067,1712863865592,-500.0,0.00027945,2]
[322174068,1712863865604,-692.78,0.00027945,2]
[322174069,1712863865614,-746.58,0.00027945,2]
[322174070,1712863865623,-1198.98,0.00027945,2]
[322174071,1712863865634,-500.0,0.00027945,2]
[322174072,1712863865644,-1215.62,0.00027945,2]
[322174073,1712863865653,-1357.74,0.00027945,2]
[322174074,1712863865663,-1787.05,0.00027945,2]
[322174075,1712863865673,-773.26,0.00027945,2]
[322174076,1712863865683,-500.0,0.00027945,2]
[322174077,1712863865692,-500.0,0.00027945,2]
[322174078,1712863865702,-1160.82,0.00027945,2]
[322174079,1712863865712,-856.28,0.00027945,2]
[322174080,1712863865721,-2284.7,0.00027945,2]
[322174081,1712863865732,-500.0,0.00027945,2]
[322174082,1712863865741,-500.0,0.00027945,2]
[322174083,1712863865750,-1712.28,0.00027945,2]
[322174084,1712863865760,-1447.07,0.00027945,2]
[322174085,1712863865769,-1043.02,0.00027945,2]
[322174086,1712863865779,-500.0,0.00027945,2]
[322174087,1712863865789,-999.23,0.00027945,2]
[322174088,1712863865798,-500.0,0.00027945,2]
[322174089,1712863865808,-880.42,0.00027945,2]
[322174090,1712863865818,-242.793623,0.00027945,2]
[322174091,1712863865826,-185.5645795,0.00027945,2]
[322174092,1712863865835,-500.0,0.00027945,2]
[322174093,1712863865844,-500.0,0.00027945,2]
[322174094,1712863865853,-1769.53,0.00027945,2]
[322174095,1712863865861,-510.69961985,0.00027945,2]
[322174096,1712863865869,-909.93,0.00027945,2]
[322174097,1712863865877,-500.0,0.00027945,2]
[322174098,1712863865886,-563.4,0.00027945,2]
[322174099,1712863865895,-731.37,0.00027945,2]
[322174100,1712863865904,-2584.91,0.00027945,2]
[322174101,1712863865913,-500.0,0.00027945,2]
[322174102,1712863865923,-500.0,0.00027945,2]
[322174103,1712863865932,-500.0,0.00027945,2]
[322174104,1712863865942,-500.0,0.00027945,2]
[322174105,1712863865952,-836.78,0.00027945,2]
[322174106,1712863865961,-500.0,0.00027945,2]
[322174107,1712863865971,-500.0,0.00027945,2]
[322174108,1712863865980,-500.0,0.00027945,2]
[322174109,1712863865989,-500.0,0.00027945,2]
[322174110,1712863866001,-500.0,0.00027945,2]
[322174111,1712863866013,-1928.08,0.00027945,2]
[322174112,1712863866022,-1054.17,0.00027945,2]
[322174113,1712863866033,-624.77,0.00027945,2]
[322174114,1712863866043,-500.0,0.00027945,2]
[322174115,1712863866054,-500.0,0.00027945,2]
[322174116,1712863866065,-500.0,0.00027945,2]
[322174117,1712863866077,-1287.39,0.00027945,2]
[322174118,1712863866091,-500.0,0.00027945,2]
[322174119,1712863866101,-1131.99,0.00027945,2]
[322174120,1712863866111,-500.0,0.00027945,2]
[322174121,1712863866121,-670.56,0.00027945,2]
[322174122,1712863866131,-1218.52,0.00027945,2]
[322174123,1712863866140,-552.81808048,0.00027945,2]
[322174124,1712863866151,-500.0,0.00027945,2]
[322174125,1712863866161,-500.0,0.00027945,2]
[322174126,1712863866170,-500.0,0.00027945,2]
[322174127,1712863866182,-500.0,0.00027945,2]
[322174128,1712863866192,-500.0,0.00027945,2]
[322174129,1712863866202,-3023.85,0.00027945,2]
[322174130,1712863866212,-1925.75,0.00027945,2]
[322174131,1712863866222,-1413.49,0.00027945,2]
[322174132,1712863866231,-500.0,0.00027945,2]
[322174133,1712863866241,-1314.42,0.00027945,2]
[322174134,1712863866251,-946.59,0.00027945,2]
[322174135,1712863866260,-500.0,0.00027945,2]
[322174136,1712863866270,-500.0,0.00027945,2]
[322174137,1712863866280,-1299.32,0.00027945,2]
[322174138,1712863866289,-1451.55,0.00027945,2]
[322174139,1712863866299,-657.55,0.00027945,2]
[322174140,1712863866308,-1859.86,0.00027945,2]
[322174141,1712863866319,-1299.55,0.00027945,2]
[322174142,1712863866329,-500.0,0.00027945,2]
[322174143,1712863866338,-500.0,0.00027945,2]
[322174144,1712863866347,-500.0,0.00027945,2]
[322174145,1712863866356,-1118.53,0.00027945,2]
[322174146,1712863866366,-500.0,0.00027945,2]
[322174147,1712863866376,-500.0,0.00027945,2]
[322174148,1712863866385,-500.0,0.00027945,2]
[322174149,1712863866395,-500.0,0.00027945,2]
[322174150,1712863866405,-500.0,0.00027945,2]
[322174151,1712863866414,-500.0,0.00027945,2]
[322174152,1712863866424,-500.0,0.00027945,2]
[322174153,1712863866433,-500.0,0.00027945,2]
[322174154,1712863866445,-186.11136851,0.00027945,2]
[322174155,1712863866454,-690.5,0.00027945,2]
[322174156,1712863866464,-820.46,0.00027945,2]
[322174157,1712863866474,-1746.83,0.00027945,2]
[322174158,1712863866484,-500.0,0.00027945,2]
[322174159,1712863866493,-1556.05,0.00027945,2]
[322174160,1712863866503,-2701.17,0.00027945,2]
[322174161,1712863866512,-500.0,0.00027945,2]
[322174162,1712863866522,-500.0,0.00027945,2]
[322174163,1712863866532,-500.0,0.00027945,2]
[322174164,1712863866542,-500.0,0.00027945,2]
[322174165,1712863866552,-500.0,0.00027945,2]
[322174166,1712863866564,-1236.35,0.00027945,2]
[322174167,1712863866574,-500.0,0.00027945,2]
[322174168,1712863866587,-1904.13,0.00027945,2]
[322174169,1712863866596,-1836.84,0.00027945,2]
[322174170,1712863866606,-500.0,0.00027945,2]
[322174171,1712863866616,-500.0,0.00027945,2]
[322174172,1712863866626,-2054.27,0.00027945,2]
[322174173,1712863866636,-1139.8,0.00027945,2]
[322174174,1712863866645,-500.0,0.00027945,2]
[322174175,1712863866655,-500.0,0.00027945,2]
[322174176,1712863866664,-500.0,0.00027945,2]
[322174177,1712863866675,-500.0,0.00027945,2]
[322174178,1712863866684,-500.0,0.00027945,2]
[322174179,1712863866694,-500.0,0.00027945,2]
[322174180,1712863866703,-500.0,0.00027945,2]
[322174181,1712863866712,-500.0,0.00027945,2]
[322174182,1712863866722,-597.19080736,0.00027945,2]
[322174183,1712863866731,-500.0,0.00027945,2]
[322174184,1712863866741,-1133.86,0.00027945,2]
[322174185,1712863866750,-500.0,0.00027945,2]
[322174186,1712863866759,-500.0,0.00027945,2]
[322174187,1712863866768,-500.0,0.00027945,2]
[322174188,1712863866777,-1519.24,0.00027945,2]
[322174189,1712863866786,-448.38551453,0.00027945,2]
[322174190,1712863866795,-1150.3,0.00027945,2]
[322174191,1712863866804,-500.0,0.00027945,2]
[322174192,1712863866814,-37031.74,0.00027945,2]
[322174193,1712863866822,-500.0,0.00027945,2]
[322174194,1712863866831,-500.0,0.00027945,2]
[322174195,1712863866840,-500.0,0.00027945,2]
[322174196,1712863866850,-2252.02,0.00027945,2]
[322174197,1712863866860,-500.0,0.00027945,2]
[322174198,1712863866870,-1665.9,0.00027945,2]
[322174199,1712863866880,-500.0,0.00027945,2]
[322174200,1712863866890,-2019.36,0.00027945,2]
[322174201,1712863866899,-500.0,0.00027945,2]
[322174202,1712863866909,-500.0,0.00027945,2]
[322174203,1712863866919,-500.0,0.00027945,2]
[322174204,1712863866929,-3193.7,0.00027945,2]
[322174205,1712863866939,-978.88,0.00027945,2]
[322174206,1712863866948,-975.54,0.00027945,2]
[322174207,1712863866958,-805.26,0.00027945,2]
[322174208,1712863866968,-1224.29,0.00027945,2]
[322174209,1712863866978,-500.0,0.00027945,2]
[322174210,1712863866987,-500.0,0.00027945,2]
[322174211,1712863866996,-672.73,0.00027945,2]
[322174212,1712863867006,-613.53744782,0.00027945,2]
[322174213,1712863867016,-500.0,0.00027945,2]
[322174214,1712863867025,-2055.0,0.00027945,2]
[322174215,1712863867034,-603.86451577,0.00027945,2]
[322174216,1712863867044,-1014.43,0.00027945,2]
[322174217,1712863867054,-500.0,0.00027945,2]
[322174218,1712863867064,-500.0,0.00027945,2]
[322174219,1712863867073,-638.51,0.00027945,2]
[322174220,1712863867082,-1372.0,0.00027945,2]
[322174221,1712863867091,-500.0,0.00027945,2]
[322174222,1712863867101,-5315.89,0.00027945,2]
[322174223,1712863867110,-941.68,0.00027945,2]
[322174224,1712863867120,-3008.91,0.00027945,2]
[322174225,1712863867130,-362.16698203,0.00027945,2]
[322174226,1712863867140,-2757.19,0.00027945,2]
[322174227,1712863867149,-500.0,0.00027945,2]
[322174228,1712863867159,-500.0,0.00027945,2]
[322174229,1712863867168,-500.0,0.00027945,2]
[322174230,1712863867178,-2271.32,0.00027945,2]
[322174231,1712863867188,-687.63,0.00027945,2]
[322174232,1712863867197,-3074.05,0.00027945,2]
[322174233,1712863867207,-500.0,0.00027945,2]
[322174234,1712863867217,-1265.86,0.00027945,2]
[322174235,1712863867226,-500.0,0.00027945,2]
[322174236,1712863867236,-500.0,0.00027945,2]
[322174237,1712863867245,-500.0,0.00027945,2]
[322174238,1712863867254,-1938.09,0.00027945,2]
[322174239,1712863867264,-4379.49,0.00027945,2]
[322174240,1712863867273,-1283.37,0.00027945,2]
[322174241,1712863867283,-1885.35,0.00027945,2]
[322174242,1712863867293,-500.0,0.00027945,2]
[322174243,1712863867302,-3234.82171807,0.00027945,2]
[322174244,1712863868105,-1112.03828193,0.00027945,2]
[322174245,1712863868115,-1155.02,0.00027945,2]
[322174246,1712863868125,-500.0,0.00027945,2]
[322174247,1712863868134,-53501.75,0.00027945,2]
[322174248,1712863868143,-500.0,0.00027945,2]
[322174249,1712863868152,-1799.15,0.00027945,2]
[322174250,1712863868162,-500.0,0.00027945,2]
[322174251,1712863868171,-2310.28,0.00027945,2]
[322174252,1712863868181,-1949.19,0.00027945,2]
[322174253,1712863868190,-1577.48,0.00027945,2]
[322174254,1712863868199,-500.0,0.00027945,2]
[322174255,1712863868208,-1254.45,0.00027945,2]
[322174256,1712863868217,-213.73152683,0.00027945,2]
[322174257,1712863868226,-522.11,0.00027945,2]
[322174258,1712863868236,-2414.38,0.00027945,2]
[322174259,1712863868245,-18239.28,0.00027945,2]
[322174260,1712863868254,-500.0,0.00027945,2]
[322174261,1712863868263,-907.51,0.00027945,2]
[322174262,1712863868273,-1269.78,0.00027945,2]
[322174263,1712863868283,-500.0,0.00027945,2]
[322174264,1712863868293,-4087.64,0.00027945,2]
[322174265,1712863868303,-4035.48,0.00027945,2]
[322174266,1712863868316,-1472.75,0.00027945,2]
[322174267,1712863868326,-569.15,0.00027945,2]
[322174268,1712863868336,-500.0,0.00027945,2]
[322174269,1712863868345,-500.0,0.00027945,2]
[322174270,1712863868355,-500.0,0.00027945,2]
[322174271,1712863868364,-500.0,0.00027945,2]
[322174272,1712863868373,-3443.33,0.00027945,2]
[322174273,1712863868383,-500.0,0.00027945,2]
[322174274,1712863868392,-715.43,0.00027945,2]
[322174275,1712863868402,-1468.65,0.00027945,2]
[322174276,1712863868411,-4438.94,0.00027945,2]
[322174277,1712863868420,-500.0,0.00027945,2]
[322174278,1712863868430,-500.0,0.00027945,2]
[322174279,1712863868438,-500.0,0.00027945,2]
[322174280,1712863868448,-947.32,0.00027945,2]
[322174281,1712863868457,-1078.14,0.00027945,2]
[322174282,1712863868466,-1460.88,0.00027945,2]
[322174283,1712863868476,-500.0,0.00027945,2]
[322174284,1712863868485,-4053.95,0.00027945,2]
[322174285,1712863868495,-742.27,0.00027945,2]
[322174286,1712863868504,-500.0,0.00027945,2]
[322174287,1712863868513,-500.0,0.00027945,2]
[322174288,1712863868523,-500.0,0.00027945,2]
[322174289,1712863868532,-1767.47,0.00027945,2]
[322174290,1712863868541,-785.41,0.00027945,2]
[322174291,1712863868550,-9803.96,0.00027945,2]
[322174292,1712863868560,-1559.45,0.00027945,2]
[322174293,1712863868575,-12452.77,0.00027945,2]
[322174294,1712863868588,-500.0,0.00027945,2]
[322174295,1712863868598,-500.0,0.00027945,2]
[322174296,1712863868609,-6184.21,0.00027945,2]
[322174297,1712863868619,-696.39,0.00027945,2]
[322174298,1712863868630,-4243.64,0.00027945,2]
[322174299,1712863868639,-500.0,0.00027945,2]
[322174300,1712863868649,-500.0,0.00027945,2]
[322174301,1712863868658,-500.0,0.00027945,2]
[322174302,1712863868667,-1034.64,0.00027945,2]
[322174303,1712863868680,-500.0,0.00027945,2]
[322174304,1712863868689,-500.0,0.00027945,2]
[322174305,1712863868698,-500.0,0.00027945,2]
[322174306,1712863868708,-2762.12,0.00027945,2]
[322174307,1712863868718,-2525.19,0.00027945,2]
[322174308,1712863868727,-3638.97,0.00027945,2]
[322174309,1712863868736,-809.39,0.00027945,2]
[322174310,1712863868745,-6755.28,0.00027945,2]
[322174311,1712863868754,-500.0,0.00027945,2]
[322174312,1712863868764,-500.0,0.00027945,2]
[322174313,1712863868773,-3313.18,0.00027945,2]
[322174314,1712863868783,-3298.66,0.00027945,2]
[322174315,1712863868793,-2090.96,0.00027945,2]
[322174316,1712863868802,-3316.05,0.00027945,2]
[322174317,1712863868812,-500.0,0.00027945,2]
[322174318,1712863868832,-2581.64,0.00027945,2]
[322174319,1712863868842,-500.0,0.00027945,2]
[322174320,1712863868850,-500.0,0.00027945,2]
[322174321,1712863868859,-516.64334294,0.00027945,2]
[322174322,1712863868869,-2873.47,0.00027945,2]
[322174323,1712863868878,-500.0,0.00027945,2]
[322174324,1712863868888,-2480.74,0.00027945,2]
[322174325,1712863868897,-1598.84,0.00027945,2]
[322174326,1712863868906,-1789.61,0.00027945,2]
[322174327,1712863868915,-14422.58,0.00027945,2]
[322174328,1712863868925,-5953.17,0.00027945,2]
[322174329,1712863868934,-737.57,0.00027945,2]
[322174330,1712863868943,-1652.71,0.00027945,2]
[322174331,1712863868952,-500.0,0.00027945,2]
[322174332,1712863868962,-7074.56,0.00027945,2]
[322174333,1712863868971,-500.0,0.00027945,2]
[322174334,1712863868980,-1619.98,0.00027945,2]
[322174335,1712863868990,-500.0,0.00027945,2]
[322174336,1712863868999,-2584.49,0.00027945,2]
[322174337,1712863869008,-500.0,0.00027945,2]
[322174338,1712863869018,-2631.69,0.00027945,2]
[322174339,1712863869027,-10781.75,0.00027945,2]
[322174340,1712863869038,-2228.38,0.00027945,2]
[322174341,1712863869047,-2141.81,0.00027945,2]
[322174342,1712863869056,-547.08,0.00027945,2]
[322174343,1712863869069,-1182.41,0.00027945,2]
[322174344,1712863869078,-1593.8,0.00027945,2]
[322174345,1712863869087,-1306.7,0.00027945,2]
[322174346,1712863869096,-2162.99,0.00027945,2]
[322174347,1712863869105,-500.0,0.00027945,2]
[322174348,1712863869114,-1388.34,0.00027945,2]
[322174349,1712863869125,-500.0,0.00027945,2]
[322174350,1712863869135,-4975.16,0.00027945,2]
[322174351,1712863869144,-500.0,0.00027945,2]
[322174352,1712863869154,-500.0,0.00027945,2]
[322174353,1712863869163,-500.0,0.00027945,2]
[322174354,1712863869173,-3398.13,0.00027945,2]
[322174355,1712863869182,-4052.06,0.00027945,2]
[322174356,1712863869191,-500.0,0.00027945,2]
[322174357,1712863869200,-500.0,0.00027945,2]
[322174358,1712863869210,-3587.71,0.00027945,2]
[322174359,1712863869219,-500.0,0.00027945,2]
[322174360,1712863869228,-2718.79,0.00027945,2]
[322174361,1712863869238,-538.59,0.00027945,2]
[322174362,1712863869247,-500.0,0.00027945,2]
[322174363,1712863869256,-643.87,0.00027945,2]
[322174364,1712863869266,-1944.58,0.00027945,2]
[322174365,1712863869275,-3239.59,0.00027945,2]
[322174366,1712863869285,-741.23,0.00027945,2]
[322174367,1712863869295,-640.82,0.00027945,2]
[322174368,1712863869305,-2450.14,0.00027945,2]
[322174369,1712863869318,-1379.62,0.00027945,2]
[322174370,1712863869327,-500.0,0.00027945,2]
[322174371,1712863869337,-1028.85,0.00027945,2]
[322174372,1712863869348,-5944.87,0.00027945,2]
[322174373,1712863869358,-2132.08,0.00027945,2]
[322174374,1712863869368,-1280.64,0.00027945,2]
[322174375,1712863869378,-1028.51,0.00027945,2]
[322174376,1712863869390,-4562.38,0.00027945,2]
[322174377,1712863869400,-7074.77,0.00027945,2]
[322174378,1712863869409,-6825.13,0.00027945,2]
[322174379,1712863869419,-500.0,0.00027945,2]
[322174380,1712863869429,-3134.26,0.00027945,2]
[322174381,1712863869439,-2368.31,0.00027945,2]
[322174382,1712863869449,-15352.07,0.00027945,2]
[322174383,1712863869458,-1225.72,0.00027945,2]
[322174384,1712863869467,-500.0,0.00027945,2]
[322174385,1712863869476,-1114.66,0.00027945,2]
[322174386,1712863869486,-1085.38,0.00027945,2]
[322174387,1712863869495,-757.5,0.00027945,2]
[322174388,1712863869505,-500.0,0.00027945,2]
[322174389,1712863869514,-1240.17,0.00027945,2]
[322174390,1712863869523,-151.0,0.00027945,7]
[322174391,1712863869532,-3479.62,0.00027945,2]
[322174392,1712863869541,-3289.28,0.00027945,2]
[322174393,1712863869550,-151.0,0.00027945,7]
[322174394,1712863869560,-4609.28,0.00027945,2]
[322174395,1712863869572,-586.73,0.00027945,2]
[322174396,1712863869581,-776.88,0.00027945,2]
[322174397,1712863869591,-1626.2,0.00027945,2]
[322174398,1712863869600,-500.0,0.00027945,2]
[322174399,1712863869612,-20099.39,0.00027945,2]
[322174400,1712863869621,-1308.93,0.00027945,2]
[322174401,1712863869630,-851.06,0.00027945,2]
[322174402,1712863869640,-25741.65,0.00027945,2]
[322174403,1712863869650,-3018.25,0.00027945,2]
[322174404,1712863869659,-2048.9,0.00027945,2]
[322174405,1712863869669,-3588.33,0.00027945,2]
[322174406,1712863869678,-3107.63,0.00027945,2]
[322174407,1712863869688,-1051.67,0.00027945,2]
[322174408,1712863869697,-570.84853379,0.00027945,2]
[322174409,1712863869706,-500.0,0.00027945,2]
[322174410,1712863869716,-2374.36,0.00027945,2]
[322174411,1712863869725,-1592.05,0.00027945,2]
[322174412,1712863869734,-2534.14,0.00027945,2]
[322174413,1712863869743,-19452.39,0.00027945,2]
[322174414,1712863869753,-505.91,0.00027945,2]
[322174415,1712863869763,-500.0,0.00027945,2]
[322174416,1712863869774,-527.81,0.00027945,2]
[322174417,1712863869784,-3020.3,0.00027945,2]
[322174418,1712863869794,-7446.86,0.00027945,2]
[322174419,1712863869805,-1495.54,0.00027945,2]
[322174420,1712863869816,-500.0,0.00027945,2]
[322174421,1712863869826,-2700.11,0.00027945,2]
[322174422,1712863869835,-614.49,0.00027945,2]
[322174423,1712863869845,-1142.49,0.00027945,2]
[322174424,1712863869854,-500.0,0.00027945,2]
[322174425,1712863869863,-500.0,0.00027945,2]
[322174426,1712863869872,-8843.49,0.00027945,2]
[322174427,1712863869881,-682.27,0.00027945,2]
[322174428,1712863869890,-2651.73,0.00027945,2]
[322174429,1712863869900,-18815.4,0.00027945,2]
[322174430,1712863869909,-54176.01,0.00027945,2]
[322174431,1712863869918,-3784.62,0.00027945,2]
[322174432,1712863869927,-1593.95,0.00027945,2]
[322174433,1712863869937,-8906.82,0.00027945,2]
[322174434,1712863869946,-500.0,0.00027945,2]
[322174435,1712863869955,-4300.73,0.00027945,2]
[322174436,1712863869965,-631.27,0.00027945,2]
[322174437,1712863869974,-596.57,0.00027945,2]
[322174438,1712863869983,-500.0,0.00027945,2]
[322174439,1712863869993,-500.0,0.00027945,2]
[322174440,1712863870002,-4603.8,0.00027945,2]
[322174441,1712863870011,-2116.62,0.00027945,2]
[322174442,1712863870020,-4305.06,0.00027945,2]
[322174443,1712863870029,-821.16,0.00027945,2]
[322174444,1712863870039,-6457.93,0.00027945,2]
[322174445,1712863870049,-500.0,0.00027945,2]
[322174446,1712863870058,-1483.72,0.00027945,2]
[322174447,1712863870068,-503.43488777,0.00027945,2]
[322174448,1712863870078,-500.0,0.00027945,2]
[322174449,1712863870088,-690.55,0.00027945,2]
[322174450,1712863870097,-500.0,0.00027945,2]
[322174451,1712863870108,-812.85,0.00027945,2]
[322174452,1712863870118,-5042.1,0.00027945,2]
[322174453,1712863870127,-2960.07,0.00027945,2]
[322174454,1712863870137,-500.0,0.00027945,2]
[322174455,1712863870146,-500.0,0.00027945,2]
[322174456,1712863870159,-5647.2,0.00027945,2]
[322174457,1712863870169,-4454.49,0.00027945,2]
[322174458,1712863870178,-2440.94,0.00027945,2]
[322174459,1712863870187,-500.0,0.00027945,2]
[322174460,1712863870196,-500.0,0.00027945,2]
[322174461,1712863870206,-1308.46,0.00027945,2]
[322174462,1712863870215,-748.44,0.00027945,2]
[322174463,1712863870230,-500.0,0.00027945,2]
[322174464,1712863870240,-849.93,0.00027945,2]